[Event "Titled Tuesday Blitz August 3 2021"]
[White "Nilsson, Joakim"]
[Black "Koellner, Ruben Gideon"]
[WhiteFideId "1723383"]
[BlackFideId "12993093"]
[WhiteElo "2180"]
[BlackElo "2498"]
[Result "1-0"]
[Round "11"]
[TimeControl "180+1"]
[Date "2021.08.03"]
[WhiteClock "0:01:14"]
[BlackClock "0:00:46"]

1. Nf3 {[%clk 0:03:00]}  c6 {[%clk 0:02:59]} 2. b3 {[%clk 0:02:58]}  d5 {[%clk 0:02:58]} 3. Bb2 {[%clk 0:02:59]}  Nf6 {[%clk 0:02:57]} 4. g3 {[%clk 0:02:57]}  Nbd7 {[%clk 0:02:57]} 5. Bg2 {[%clk 0:02:58]}  Qc7 {[%clk 0:02:57]} 6. c4 {[%clk 0:02:56]}  e6 {[%clk 0:02:56]} 7. O-O {[%clk 0:02:55]}  Bd6 {[%clk 0:02:55]} 8. Nc3 {[%clk 0:02:56]}  O-O {[%clk 0:02:55]} 9. Rc1 {[%clk 0:02:56]}  a6 {[%clk 0:02:54]} 10. cxd5 {[%clk 0:02:52]}  exd5 {[%clk 0:02:53]} 11. d3 {[%clk 0:02:48]}  Qd8 {[%clk 0:02:53]} 12. Qc2 {[%clk 0:02:41]}  Qe7 {[%clk 0:02:53]} 13. Qb1 {[%clk 0:02:41]}  Re8 {[%clk 0:02:52]} 14. Qa1 {[%clk 0:02:41]}  Ne5 {[%clk 0:02:45]} 15. Na4 {[%clk 0:02:36]}  Nxf3+ {[%clk 0:02:42]} 16. Bxf3 {[%clk 0:02:37]}  Be5 {[%clk 0:02:38]} 17. Nb6 {[%clk 0:02:34]}  Rb8 {[%clk 0:02:37]} 18. Bxe5 {[%clk 0:02:29]}  Qxe5 {[%clk 0:02:37]} 19. Qxe5 {[%clk 0:02:29]}  Rxe5 {[%clk 0:02:38]} 20. d4 {[%clk 0:02:28]}  Re7 {[%clk 0:02:37]} 21. Nxc8 {[%clk 0:02:24]}  Rxc8 {[%clk 0:02:38]} 22. Rc2 {[%clk 0:02:21]}  Rd8 {[%clk 0:02:29]} 23. b4 {[%clk 0:02:21]}  Ne8 {[%clk 0:02:29]} 24. e3 {[%clk 0:02:20]}  Nd6 {[%clk 0:02:29]} 25. Be2 {[%clk 0:02:20]}  f5 {[%clk 0:02:29]} 26. Bd3 {[%clk 0:02:19]}  g5 {[%clk 0:02:29]} 27. a4 {[%clk 0:02:10]}  f4 {[%clk 0:02:24]} 28. exf4 {[%clk 0:02:10]}  gxf4 {[%clk 0:02:25]} 29. b5 {[%clk 0:02:11]}  axb5 {[%clk 0:02:24]} 30. axb5 {[%clk 0:02:12]}  cxb5 {[%clk 0:02:25]} 31. Rc5 {[%clk 0:02:11]}  Ne4 {[%clk 0:02:19]} 32. Rxb5 {[%clk 0:02:05]}  Nd2 {[%clk 0:02:19]} 33. Rd1 {[%clk 0:02:00]}  Nf3+ {[%clk 0:02:19]} 34. Kg2 {[%clk 0:01:59]}  Nxd4 {[%clk 0:02:20]} 35. Rxd5 {[%clk 0:01:55]}  f3+ {[%clk 0:02:05]} 36. Kh3 {[%clk 0:01:51]}  Rxd5 {[%clk 0:01:49]} 37. Bc4 {[%clk 0:01:50]}  Kg7 {[%clk 0:01:11]} 38. Bxd5 {[%clk 0:01:49]}  Nb5 {[%clk 0:01:04]} 39. Bxf3 {[%clk 0:01:47]}  Nc3 {[%clk 0:01:05]} 40. Rd3 {[%clk 0:01:45]}  Rc7 {[%clk 0:01:04]} 41. Bxb7 {[%clk 0:01:41]}  Ne2 {[%clk 0:00:53]} 42. Be4 {[%clk 0:01:21]}  Re7 {[%clk 0:00:50]} 43. f3 {[%clk 0:01:15]}  Rb7 {[%clk 0:00:46]} 44. Bxb7 {[%clk 0:01:14]} 1-0


[Site "https://www.chess.com"]

[Event "Titled Tuesday Blitz August 3 2021"]
[White "Nozdrachev, Leonid"]
[Black "Shimelkov, Vasiliy"]
[WhiteFideId "24113433"]
[BlackFideId "13701630"]
[WhiteElo "2221"]
[BlackElo "2073"]
[Result "0-1"]
[Round "11"]
[TimeControl "180+1"]
[Date "2021.08.03"]
[WhiteClock "0:00:02"]
[BlackClock "0:00:39"]

1. e4 {[%clk 0:03:00]}  c6 {[%clk 0:02:58]} 2. d4 {[%clk 0:02:54]}  d5 {[%clk 0:02:57]} 3. exd5 {[%clk 0:02:54]}  cxd5 {[%clk 0:02:57]} 4. Bd3 {[%clk 0:02:55]}  Nc6 {[%clk 0:02:55]} 5. c3 {[%clk 0:02:54]}  Nf6 {[%clk 0:02:54]} 6. h3 {[%clk 0:02:53]}  g6 {[%clk 0:02:52]} 7. Bf4 {[%clk 0:02:51]}  Bg7 {[%clk 0:02:50]} 8. Nf3 {[%clk 0:02:51]}  O-O {[%clk 0:02:50]} 9. O-O {[%clk 0:02:50]}  Bf5 {[%clk 0:02:49]} 10. Ne5 {[%clk 0:02:49]}  Nxe5 {[%clk 0:02:45]} 11. dxe5 {[%clk 0:02:41]}  Ne4 {[%clk 0:02:39]} 12. g4 {[%clk 0:02:26]}  Bd7 {[%clk 0:02:36]} 13. Bxe4 {[%clk 0:02:25]}  dxe4 {[%clk 0:02:35]} 14. Nd2 {[%clk 0:02:23]}  Bc6 {[%clk 0:02:33]} 15. Re1 {[%clk 0:02:22]}  Qc7 {[%clk 0:02:20]} 16. Nxe4 {[%clk 0:02:17]}  Bxe5 {[%clk 0:02:13]} 17. Bxe5 {[%clk 0:02:14]}  Qxe5 {[%clk 0:02:11]} 18. Ng3 {[%clk 0:02:02]}  Qf6 {[%clk 0:02:08]} 19. Qe2 {[%clk 0:01:50]}  e6 {[%clk 0:02:05]} 20. Ne4 {[%clk 0:01:49]}  Qh4 {[%clk 0:02:03]} 21. Qf3 {[%clk 0:01:45]}  f5 {[%clk 0:02:02]} 22. Qg3 {[%clk 0:01:38]}  Qxg3+ {[%clk 0:02:02]} 23. Nxg3 {[%clk 0:01:39]}  fxg4 {[%clk 0:02:02]} 24. hxg4 {[%clk 0:01:36]}  Rf4 {[%clk 0:02:02]} 25. g5 {[%clk 0:01:31]}  Raf8 {[%clk 0:01:57]} 26. Re2 {[%clk 0:01:26]}  e5 {[%clk 0:01:53]} 27. Rae1 {[%clk 0:01:13]}  e4 {[%clk 0:01:51]} 28. Nxe4 {[%clk 0:01:02]}  Rg4+ {[%clk 0:01:43]} 29. Kf1 {[%clk 0:00:46]}  Bxe4 {[%clk 0:01:37]} 30. Rxe4 {[%clk 0:00:45]}  Rxg5 {[%clk 0:01:37]} 31. Re5 {[%clk 0:00:41]}  Rxe5 {[%clk 0:01:35]} 32. Rxe5 {[%clk 0:00:42]}  Rf7 {[%clk 0:01:31]} 33. Kg2 {[%clk 0:00:38]}  Rd7 {[%clk 0:01:29]} 34. Kg3 {[%clk 0:00:34]}  Kf7 {[%clk 0:01:27]} 35. a4 {[%clk 0:00:32]}  Kf6 {[%clk 0:01:25]} 36. Rb5 {[%clk 0:00:30]}  a6 {[%clk 0:01:23]} 37. Rb6+ {[%clk 0:00:28]}  Kf5 {[%clk 0:01:21]} 38. c4 {[%clk 0:00:24]}  h5 {[%clk 0:01:20]} 39. b4 {[%clk 0:00:20]}  g5 {[%clk 0:01:18]} 40. c5 {[%clk 0:00:19]}  h4+ {[%clk 0:01:16]} 41. Kg2 {[%clk 0:00:19]}  g4 {[%clk 0:01:15]} 42. c6 {[%clk 0:00:19]}  h3+ {[%clk 0:01:13]} 43. Kg1 {[%clk 0:00:16]}  bxc6 {[%clk 0:01:10]} 44. Rxc6 {[%clk 0:00:17]}  Rd1+ {[%clk 0:01:08]} 45. Kh2 {[%clk 0:00:16]}  Rd2 {[%clk 0:01:06]} 46. Kg1 {[%clk 0:00:14]}  Ra2 {[%clk 0:01:04]} 47. Rxa6 {[%clk 0:00:14]}  Ra1+ {[%clk 0:00:59]} 48. Kh2 {[%clk 0:00:13]}  Rf1 {[%clk 0:00:58]} 49. Kg3 {[%clk 0:00:10]}  Rg1+ {[%clk 0:00:57]} 50. Kh2 {[%clk 0:00:10]}  Rg2+ {[%clk 0:00:56]} 51. Kh1 {[%clk 0:00:11]}  Rxf2 {[%clk 0:00:56]} 52. Ra8 {[%clk 0:00:10]}  g3 {[%clk 0:00:52]} 53. Rf8+ {[%clk 0:00:10]}  Ke4 {[%clk 0:00:49]} 54. Re8+ {[%clk 0:00:10]}  Kd5 {[%clk 0:00:47]} 55. Re1 {[%clk 0:00:09]}  g2+ {[%clk 0:00:43]} 56. Kg1 {[%clk 0:00:08]}  h2+ {[%clk 0:00:43]} 57. Kxh2 {[%clk 0:00:05]}  Rf1 {[%clk 0:00:42]} 58. Kxg2 {[%clk 0:00:04]}  Rxe1 {[%clk 0:00:42]} 59. a5 {[%clk 0:00:05]}  Kc6 {[%clk 0:00:39]} 60. Kf2 {[%clk 0:00:04]}  Rb1 {[%clk 0:00:39]} 61. Ke3 {[%clk 0:00:05]}  Rxb4 {[%clk 0:00:39]} 62. Kd3 {[%clk 0:00:04]}  Ra4 {[%clk 0:00:39]} 63. a6 {[%clk 0:00:02]}  Rxa6 {[%clk 0:00:39]} 0-1


[Site "https://www.chess.com"]

[Event "Titled Tuesday Blitz August 3 2021"]
[White "Omk124"]
[Black "Terletsky, Oleg"]
[BlackFideId "14116774"]
[WhiteElo "2529"]
[BlackElo "2094"]
[Result "0-1"]
[Round "11"]
[TimeControl "180+1"]
[Date "2021.08.03"]
[WhiteClock "0:01:26"]
[BlackClock "0:00:25"]

1. e4 {[%clk 0:03:00]}  e5 {[%clk 0:02:58]} 2. Nf3 {[%clk 0:03:00]}  Nc6 {[%clk 0:02:57]} 3. Bc4 {[%clk 0:03:00]}  Nf6 {[%clk 0:02:57]} 4. d3 {[%clk 0:03:01]}  h6 {[%clk 0:02:56]} 5. a4 {[%clk 0:02:58]}  d6 {[%clk 0:02:52]} 6. O-O {[%clk 0:02:57]}  g6 {[%clk 0:02:52]} 7. c3 {[%clk 0:02:57]}  Bg7 {[%clk 0:02:52]} 8. Nbd2 {[%clk 0:02:58]}  O-O {[%clk 0:02:51]} 9. Re1 {[%clk 0:02:58]}  Na5 {[%clk 0:02:48]} 10. Ba2 {[%clk 0:02:58]}  c5 {[%clk 0:02:48]} 11. Nf1 {[%clk 0:02:57]}  Nc6 {[%clk 0:02:42]} 12. Ne3 {[%clk 0:02:57]}  Kh7 {[%clk 0:02:38]} 13. h3 {[%clk 0:02:55]}  Nh5 {[%clk 0:02:29]} 14. Bd2 {[%clk 0:02:39]}  Nf4 {[%clk 0:02:28]} 15. Qc2 {[%clk 0:02:30]}  f5 {[%clk 0:02:16]} 16. exf5 {[%clk 0:02:28]}  gxf5 {[%clk 0:02:16]} 17. Nf1 {[%clk 0:02:29]}  Ng6 {[%clk 0:02:01]} 18. b4 {[%clk 0:02:22]}  b6 {[%clk 0:01:54]} 19. Bd5 {[%clk 0:02:18]}  Bb7 {[%clk 0:01:45]} 20. b5 {[%clk 0:02:11]}  Nb4 {[%clk 0:01:41]} 21. cxb4 {[%clk 0:02:07]}  Bxd5 {[%clk 0:01:41]} 22. N1h2 {[%clk 0:02:05]}  e4 {[%clk 0:01:24]} 23. dxe4 {[%clk 0:01:52]}  fxe4 {[%clk 0:01:24]} 24. Rxe4 {[%clk 0:01:47]}  Bxe4 {[%clk 0:01:20]} 25. Qxe4 {[%clk 0:01:48]}  Bxa1 {[%clk 0:01:20]} 26. Ng4 {[%clk 0:01:46]}  Bg7 {[%clk 0:01:12]} 27. h4 {[%clk 0:01:46]}  Qe8 {[%clk 0:01:07]} 28. Qd3 {[%clk 0:01:45]}  Rxf3 {[%clk 0:01:02]} 29. gxf3 {[%clk 0:01:43]}  h5 {[%clk 0:01:01]} 30. Ne3 {[%clk 0:01:40]}  Qe6 {[%clk 0:00:52]} 31. Nd5 {[%clk 0:01:39]}  Rf8 {[%clk 0:00:44]} 32. Bg5 {[%clk 0:01:38]}  Bd4 {[%clk 0:00:35]} 33. Ne7 {[%clk 0:01:31]}  Rf7 {[%clk 0:00:30]} 34. f4 {[%clk 0:01:26]}  Qe1+ {[%clk 0:00:25]} 35. Kg2 {[%clk 0:01:25]}  Qxf2+ {[%clk 0:00:25]} 36. Kh1 {[%clk 0:01:26]}  Qg1# {[%clk 0:00:25]} 0-1


[Site "https://www.chess.com"]

[Event "Titled Tuesday Blitz August 3 2021"]
[White "Petrovskyi, Vadym"]
[Black "Mitusov, Semen"]
[WhiteFideId "14165210"]
[BlackFideId "14151049"]
[WhiteElo "2305"]
[BlackElo "2256"]
[Result "1-0"]
[Round "11"]
[TimeControl "180+1"]
[Date "2021.08.03"]
[WhiteClock "0:02:11"]
[BlackClock "0:01:42"]

1. e4 {[%clk 0:03:00]}  e5 {[%clk 0:02:59]} 2. Nf3 {[%clk 0:03:01]}  Nc6 {[%clk 0:02:59]} 3. d4 {[%clk 0:03:01]}  exd4 {[%clk 0:02:59]} 4. Bc4 {[%clk 0:03:01]}  Nf6 {[%clk 0:02:58]} 5. e5 {[%clk 0:03:02]}  d5 {[%clk 0:02:58]} 6. Bb5 {[%clk 0:03:02]}  Ne4 {[%clk 0:02:58]} 7. Nxd4 {[%clk 0:03:02]}  Bd7 {[%clk 0:02:58]} 8. Bxc6 {[%clk 0:03:03]}  bxc6 {[%clk 0:02:59]} 9. O-O {[%clk 0:03:03]}  Bc5 {[%clk 0:02:59]} 10. f3 {[%clk 0:03:03]}  Ng5 {[%clk 0:02:59]} 11. f4 {[%clk 0:03:03]}  Ne4 {[%clk 0:02:59]} 12. Be3 {[%clk 0:03:03]}  Bb6 {[%clk 0:02:59]} 13. Nd2 {[%clk 0:03:04]}  c5 {[%clk 0:02:59]} 14. N4f3 {[%clk 0:03:04]}  Nxd2 {[%clk 0:02:58]} 15. Qxd2 {[%clk 0:03:05]}  d4 {[%clk 0:02:58]} 16. Bf2 {[%clk 0:03:05]}  Bc6 {[%clk 0:02:59]} 17. f5 {[%clk 0:03:04]}  Bxf3 {[%clk 0:02:48]} 18. gxf3 {[%clk 0:03:03]}  Qd5 {[%clk 0:02:49]} 19. Bh4 {[%clk 0:02:57]}  O-O {[%clk 0:02:35]} 20. Rae1 {[%clk 0:02:51]}  c4 {[%clk 0:02:29]} 21. f6 {[%clk 0:02:42]}  h6 {[%clk 0:01:45]} 22. fxg7 {[%clk 0:02:21]}  Kxg7 {[%clk 0:01:42]} 23. Qf4 {[%clk 0:02:11]} 1-0


[Site "https://www.chess.com"]

[Event "Titled Tuesday Blitz August 3 2021"]
[White "Prydun, Andriy"]
[Black "Rosenberg, Evan S"]
[WhiteFideId "14145898"]
[BlackFideId "2019299"]
[WhiteElo "2024"]
[BlackElo "2375"]
[Result "1-0"]
[Round "11"]
[TimeControl "180+1"]
[Date "2021.08.03"]
[WhiteClock "0:01:42"]
[BlackClock "0:00:08"]

1. d4 {[%clk 0:03:00]}  Nf6 {[%clk 0:02:59]} 2. Nc3 {[%clk 0:03:01]}  d5 {[%clk 0:02:59]} 3. Bf4 {[%clk 0:03:01]}  a6 {[%clk 0:02:57]} 4. e3 {[%clk 0:03:00]}  c5 {[%clk 0:02:57]} 5. dxc5 {[%clk 0:02:59]}  Nc6 {[%clk 0:02:53]} 6. Na4 {[%clk 0:02:55]}  e5 {[%clk 0:02:50]} 7. Bg5 {[%clk 0:02:55]}  Bxc5 {[%clk 0:02:47]} 8. Bxf6 {[%clk 0:02:53]}  gxf6 {[%clk 0:02:44]} 9. Nxc5 {[%clk 0:02:53]}  Qa5+ {[%clk 0:02:43]} 10. c3 {[%clk 0:02:52]}  Qxc5 {[%clk 0:02:44]} 11. Nf3 {[%clk 0:02:50]}  Rg8 {[%clk 0:02:39]} 12. Qc2 {[%clk 0:02:39]}  e4 {[%clk 0:02:28]} 13. Nd2 {[%clk 0:02:35]}  Bd7 {[%clk 0:02:14]} 14. O-O-O {[%clk 0:02:34]}  Rc8 {[%clk 0:02:05]} 15. Nb3 {[%clk 0:02:33]}  Qe7 {[%clk 0:01:39]} 16. Kb1 {[%clk 0:02:27]}  Be6 {[%clk 0:01:12]} 17. g3 {[%clk 0:02:19]}  Qc7 {[%clk 0:00:43]} 18. Be2 {[%clk 0:02:15]}  Qb6 {[%clk 0:00:39]} 19. Rd2 {[%clk 0:02:09]}  a5 {[%clk 0:00:38]} 20. a4 {[%clk 0:02:05]}  Ke7 {[%clk 0:00:27]} 21. Bb5 {[%clk 0:02:03]}  Ne5 {[%clk 0:00:20]} 22. Nd4 {[%clk 0:02:01]}  Rc7 {[%clk 0:00:17]} 23. f4 {[%clk 0:01:55]}  exf3 {[%clk 0:00:16]} 24. Qxh7 {[%clk 0:01:55]}  Rgc8 {[%clk 0:00:14]} 25. Rc1 {[%clk 0:01:49]}  Nc4 {[%clk 0:00:13]} 26. Rf2 {[%clk 0:01:47]}  Nxe3 {[%clk 0:00:13]} 27. Re1 {[%clk 0:01:45]}  Ng4 {[%clk 0:00:11]} 28. Nf5+ {[%clk 0:01:42]}  Kd8 {[%clk 0:00:08]} 29. Qg8# {[%clk 0:01:42]} 1-0


[Site "https://www.chess.com"]

[Event "Titled Tuesday Blitz August 3 2021"]
[White "Quispe Arteaga, Gabriel"]
[Black "Gontcharov, Vladislav"]
[WhiteFideId "32059809"]
[BlackFideId "4123492"]
[WhiteElo "2172"]
[BlackElo "2503"]
[Result "1-0"]
[Round "11"]
[TimeControl "180+1"]
[Date "2021.08.03"]
[WhiteClock "0:00:02"]
[BlackClock "0:00:05"]

1. d4 {[%clk 0:03:00]}  Nf6 {[%clk 0:02:57]} 2. c4 {[%clk 0:03:00]}  c5 {[%clk 0:02:57]} 3. d5 {[%clk 0:02:59]}  e6 {[%clk 0:02:58]} 4. Nc3 {[%clk 0:02:59]}  exd5 {[%clk 0:02:58]} 5. cxd5 {[%clk 0:03:00]}  d6 {[%clk 0:02:58]} 6. Nf3 {[%clk 0:02:58]}  g6 {[%clk 0:02:58]} 7. e4 {[%clk 0:02:58]}  Bg7 {[%clk 0:02:58]} 8. Be2 {[%clk 0:02:47]}  O-O {[%clk 0:02:57]} 9. O-O {[%clk 0:02:47]}  Re8 {[%clk 0:02:57]} 10. Qc2 {[%clk 0:02:46]}  Na6 {[%clk 0:02:57]} 11. a3 {[%clk 0:02:46]}  Bg4 {[%clk 0:02:51]} 12. Bxa6 {[%clk 0:02:38]}  bxa6 {[%clk 0:02:48]} 13. Nd2 {[%clk 0:02:38]}  Bd7 {[%clk 0:02:47]} 14. a4 {[%clk 0:02:32]}  Rb8 {[%clk 0:02:36]} 15. Nc4 {[%clk 0:02:25]}  Bc8 {[%clk 0:02:31]} 16. Bf4 {[%clk 0:02:22]}  Bf8 {[%clk 0:02:30]} 17. b3 {[%clk 0:02:17]}  Nh5 {[%clk 0:02:08]} 18. Bd2 {[%clk 0:02:16]}  f5 {[%clk 0:02:01]} 19. Rae1 {[%clk 0:02:10]}  Bd7 {[%clk 0:01:56]} 20. Qc1 {[%clk 0:01:49]}  fxe4 {[%clk 0:01:52]} 21. Nxe4 {[%clk 0:01:42]}  Bf5 {[%clk 0:01:52]} 22. Ba5 {[%clk 0:01:22]}  Qd7 {[%clk 0:01:42]} 23. f3 {[%clk 0:00:54]}  Bxe4 {[%clk 0:01:36]} 24. fxe4 {[%clk 0:00:53]}  Rxb3 {[%clk 0:01:30]} 25. e5 {[%clk 0:00:53]}  dxe5 {[%clk 0:01:26]} 26. Nxe5 {[%clk 0:00:51]}  Qxd5 {[%clk 0:01:23]} 27. Qc2 {[%clk 0:00:28]}  Rbb8 {[%clk 0:00:54]} 28. Bc3 {[%clk 0:00:17]}  Bg7 {[%clk 0:00:42]} 29. Nf3 {[%clk 0:00:17]}  Rxe1 {[%clk 0:00:39]} 30. Rxe1 {[%clk 0:00:17]}  c4 {[%clk 0:00:36]} 31. Bxg7 {[%clk 0:00:17]}  Nxg7 {[%clk 0:00:35]} 32. Re5 {[%clk 0:00:15]}  Qd3 {[%clk 0:00:27]} 33. Qxd3 {[%clk 0:00:16]}  cxd3 {[%clk 0:00:27]} 34. Rd5 {[%clk 0:00:16]}  Ne6 {[%clk 0:00:21]} 35. Rxd3 {[%clk 0:00:16]}  Rb4 {[%clk 0:00:21]} 36. Rd6 {[%clk 0:00:16]}  Nc5 {[%clk 0:00:20]} 37. Rc6 {[%clk 0:00:16]}  Ne4 {[%clk 0:00:19]} 38. h3 {[%clk 0:00:12]}  Rxa4 {[%clk 0:00:18]} 39. Rc7 {[%clk 0:00:10]}  h6 {[%clk 0:00:17]} 40. Ne5 {[%clk 0:00:10]}  g5 {[%clk 0:00:17]} 41. Kh2 {[%clk 0:00:09]}  a5 {[%clk 0:00:15]} 42. Ng4 {[%clk 0:00:09]}  h5 {[%clk 0:00:14]} 43. Nh6+ {[%clk 0:00:10]}  Kf8 {[%clk 0:00:13]} 44. Rf7+ {[%clk 0:00:10]}  Ke8 {[%clk 0:00:14]} 45. Rxa7 {[%clk 0:00:11]}  Ra2 {[%clk 0:00:13]} 46. Nf5 {[%clk 0:00:07]}  g4 {[%clk 0:00:13]} 47. Re7+ {[%clk 0:00:07]}  Kf8 {[%clk 0:00:12]} 48. Rxe4 {[%clk 0:00:08]}  gxh3 {[%clk 0:00:09]} 49. Kxh3 {[%clk 0:00:09]}  a4 {[%clk 0:00:09]} 50. Ng3 {[%clk 0:00:07]}  a3 {[%clk 0:00:08]} 51. Ra4 {[%clk 0:00:08]}  h4 {[%clk 0:00:08]} 52. Rxh4 {[%clk 0:00:05]}  Rb2 {[%clk 0:00:07]} 53. Ra4 {[%clk 0:00:05]}  a2 {[%clk 0:00:07]} 54. Ne4 {[%clk 0:00:04]}  Kf7 {[%clk 0:00:07]} 55. Kg4 {[%clk 0:00:03]}  Ke6 {[%clk 0:00:07]} 56. g3 {[%clk 0:00:02]}  Kd5 {[%clk 0:00:06]} 57. Rxa2 {[%clk 0:00:01]}  Rb4 {[%clk 0:00:05]} 58. Kf5 {[%clk 0:00:02]} 1-0


[Site "https://www.chess.com"]

[Event "Titled Tuesday Blitz August 3 2021"]
[White "Rodrigues, Bruno Morado"]
[Black "Grinblat, Dmitry"]
[WhiteFideId "2115654"]
[BlackFideId "4163257"]
[WhiteElo "2040"]
[BlackElo "2471"]
[Result "0-1"]
[Round "11"]
[TimeControl "180+1"]
[Date "2021.08.03"]
[WhiteClock "0:00:05"]
[BlackClock "0:00:04"]

1. d4 {[%clk 0:03:00]}  d5 {[%clk 0:03:00]} 2. Nc3 {[%clk 0:03:00]}  Nf6 {[%clk 0:02:59]} 3. Bg5 {[%clk 0:03:01]}  Nbd7 {[%clk 0:02:59]} 4. Qd3 {[%clk 0:03:00]}  e6 {[%clk 0:02:53]} 5. e4 {[%clk 0:03:00]}  dxe4 {[%clk 0:02:51]} 6. Nxe4 {[%clk 0:03:01]}  Be7 {[%clk 0:02:52]} 7. Bxf6 {[%clk 0:03:01]}  Nxf6 {[%clk 0:02:51]} 8. g3 {[%clk 0:03:02]}  O-O {[%clk 0:02:51]} 9. Bg2 {[%clk 0:03:02]}  Re8 {[%clk 0:02:46]} 10. Ne2 {[%clk 0:03:00]}  e5 {[%clk 0:02:30]} 11. Nxf6+ {[%clk 0:01:51]}  Bxf6 {[%clk 0:02:29]} 12. d5 {[%clk 0:01:52]}  Qe7 {[%clk 0:02:24]} 13. Nc3 {[%clk 0:01:45]}  e4 {[%clk 0:02:12]} 14. Qc4 {[%clk 0:01:28]}  e3 {[%clk 0:02:03]} 15. O-O {[%clk 0:01:28]}  Bf5 {[%clk 0:01:36]} 16. fxe3 {[%clk 0:00:54]}  Qxe3+ {[%clk 0:01:27]} 17. Kh1 {[%clk 0:00:54]}  Bxc2 {[%clk 0:01:18]} 18. Rf3 {[%clk 0:00:45]}  Qe5 {[%clk 0:01:02]} 19. Raf1 {[%clk 0:00:33]}  Rad8 {[%clk 0:00:51]} 20. Rf4 {[%clk 0:00:15]}  Re7 {[%clk 0:00:38]} 21. Nb5 {[%clk 0:00:15]}  Bg6 {[%clk 0:00:33]} 22. Nxa7 {[%clk 0:00:12]}  Qxb2 {[%clk 0:00:31]} 23. Nb5 {[%clk 0:00:12]}  Re2 {[%clk 0:00:31]} 24. Rg1 {[%clk 0:00:05]}  Rde8 {[%clk 0:00:19]} 25. Nxc7 {[%clk 0:00:05]}  Rc8 {[%clk 0:00:04]} 26. d6 {[%clk 0:00:05]}  Bd8 {[%clk 0:00:04]} 0-1


[Site "https://www.chess.com"]

[Event "Titled Tuesday Blitz August 3 2021"]
[White "Salinas Herrera, Pablo"]
[Black "Kretov, Evgenij"]
[WhiteFideId "3407128"]
[BlackFideId "4167821"]
[WhiteElo "2541"]
[BlackElo "2400"]
[Result "1-0"]
[Round "11"]
[TimeControl "180+1"]
[Date "2021.08.03"]
[WhiteClock "0:02:19"]
[BlackClock "0:01:34"]

1. d4 {[%clk 0:03:00]}  Nf6 {[%clk 0:02:55]} 2. Nf3 {[%clk 0:03:01]}  e6 {[%clk 0:02:55]} 3. Bf4 {[%clk 0:03:00]}  c5 {[%clk 0:02:55]} 4. e3 {[%clk 0:03:00]}  d5 {[%clk 0:02:55]} 5. Nbd2 {[%clk 0:02:58]}  Nc6 {[%clk 0:02:54]} 6. c3 {[%clk 0:02:59]}  Bd6 {[%clk 0:02:54]} 7. Bg3 {[%clk 0:02:59]}  O-O {[%clk 0:02:54]} 8. Bb5 {[%clk 0:02:59]}  Ne7 {[%clk 0:02:54]} 9. Bd3 {[%clk 0:02:59]}  Qc7 {[%clk 0:02:53]} 10. e4 {[%clk 0:02:47]}  dxe4 {[%clk 0:02:49]} 11. Nxe4 {[%clk 0:02:48]}  Nxe4 {[%clk 0:02:49]} 12. Bxe4 {[%clk 0:02:49]}  cxd4 {[%clk 0:02:41]} 13. Nxd4 {[%clk 0:02:46]}  Bxg3 {[%clk 0:02:33]} 14. hxg3 {[%clk 0:02:46]}  f5 {[%clk 0:02:32]} 15. Bc2 {[%clk 0:02:46]}  Qe5+ {[%clk 0:02:28]} 16. Kf1 {[%clk 0:02:45]}  b6 {[%clk 0:02:20]} 17. Bb3 {[%clk 0:02:43]}  Nd5 {[%clk 0:02:19]} 18. Kg1 {[%clk 0:02:36]}  Bb7 {[%clk 0:02:17]} 19. Qd2 {[%clk 0:02:31]}  Rfe8 {[%clk 0:02:14]} 20. Re1 {[%clk 0:02:31]}  Qd6 {[%clk 0:02:10]} 21. Qg5 {[%clk 0:02:25]}  Re7 {[%clk 0:01:41]} 22. Nxf5 {[%clk 0:02:19]}  exf5 {[%clk 0:01:34]} 23. Rxe7 {[%clk 0:02:19]} 1-0


[Site "https://www.chess.com"]

[Event "Titled Tuesday Blitz August 3 2021"]
[White "Sengupta, Deep"]
[Black "Pires, Marcos Vinicius Torsani"]
[WhiteFideId "5008352"]
[BlackFideId "2118939"]
[WhiteElo "2347"]
[BlackElo "2273"]
[Result "1-0"]
[Round "11"]
[TimeControl "180+1"]
[Date "2021.08.03"]
[WhiteClock "0:00:51"]
[BlackClock "0:00:26"]

1. f4 {[%clk 0:02:59]}  c6 {[%clk 0:03:00]} 2. Nf3 {[%clk 0:02:59]}  d5 {[%clk 0:03:01]} 3. e3 {[%clk 0:02:59]}  Nf6 {[%clk 0:03:01]} 4. b3 {[%clk 0:03:00]}  Bg4 {[%clk 0:02:55]} 5. Bb2 {[%clk 0:03:00]}  e6 {[%clk 0:02:55]} 6. Be2 {[%clk 0:02:59]}  Nbd7 {[%clk 0:02:55]} 7. h3 {[%clk 0:03:00]}  Bxf3 {[%clk 0:02:56]} 8. Bxf3 {[%clk 0:03:00]}  Bd6 {[%clk 0:02:56]} 9. O-O {[%clk 0:03:00]}  O-O {[%clk 0:02:54]} 10. d4 {[%clk 0:02:58]}  c5 {[%clk 0:02:52]} 11. c3 {[%clk 0:02:53]}  Rc8 {[%clk 0:02:48]} 12. Nd2 {[%clk 0:02:53]}  Qe7 {[%clk 0:02:45]} 13. g4 {[%clk 0:02:46]}  cxd4 {[%clk 0:02:42]} 14. cxd4 {[%clk 0:02:46]}  Ba3 {[%clk 0:02:42]} 15. Bxa3 {[%clk 0:02:39]}  Qxa3 {[%clk 0:02:43]} 16. g5 {[%clk 0:02:39]}  Ne8 {[%clk 0:02:40]} 17. Rf2 {[%clk 0:02:35]}  Nd6 {[%clk 0:02:39]} 18. Nf1 {[%clk 0:02:34]}  Rc3 {[%clk 0:02:32]} 19. Rc2 {[%clk 0:02:19]}  Rxc2 {[%clk 0:02:27]} 20. Qxc2 {[%clk 0:02:19]}  Rc8 {[%clk 0:02:28]} 21. Qd2 {[%clk 0:02:19]}  Nf5 {[%clk 0:02:20]} 22. Bg4 {[%clk 0:02:18]}  Nd6 {[%clk 0:02:16]} 23. Bf3 {[%clk 0:02:14]}  Nf5 {[%clk 0:02:16]} 24. Be2 {[%clk 0:02:08]}  Nf8 {[%clk 0:02:12]} 25. Bd3 {[%clk 0:02:07]}  Nd6 {[%clk 0:02:12]} 26. h4 {[%clk 0:02:05]}  Ng6 {[%clk 0:02:07]} 27. h5 {[%clk 0:02:05]}  Ne7 {[%clk 0:02:06]} 28. Ng3 {[%clk 0:02:03]}  a5 {[%clk 0:01:58]} 29. h6 {[%clk 0:01:28]}  g6 {[%clk 0:01:54]} 30. Rd1 {[%clk 0:01:27]}  a4 {[%clk 0:01:50]} 31. bxa4 {[%clk 0:01:26]}  Qxa4 {[%clk 0:01:50]} 32. Rb1 {[%clk 0:01:23]}  b5 {[%clk 0:01:48]} 33. Nf1 {[%clk 0:01:20]}  Nc4 {[%clk 0:01:47]} 34. Qb4 {[%clk 0:01:16]}  Qxb4 {[%clk 0:01:09]} 35. Rxb4 {[%clk 0:01:15]}  Rb8 {[%clk 0:00:44]} 36. a4 {[%clk 0:01:13]}  Nc6 {[%clk 0:00:44]} 37. Rxb5 {[%clk 0:01:13]}  Rxb5 {[%clk 0:00:44]} 38. axb5 {[%clk 0:01:13]}  Na7 {[%clk 0:00:43]} 39. Bxc4 {[%clk 0:01:06]}  dxc4 {[%clk 0:00:44]} 40. b6 {[%clk 0:01:06]}  Nc6 {[%clk 0:00:44]} 41. Kf2 {[%clk 0:01:02]}  Kf8 {[%clk 0:00:40]} 42. Ke2 {[%clk 0:01:02]}  Ke7 {[%clk 0:00:40]} 43. Nd2 {[%clk 0:01:01]}  c3 {[%clk 0:00:36]} 44. Nc4 {[%clk 0:01:01]}  Kd8 {[%clk 0:00:29]} 45. Kd3 {[%clk 0:00:59]}  Nb4+ {[%clk 0:00:27]} 46. Kxc3 {[%clk 0:00:59]}  Nd5+ {[%clk 0:00:28]} 47. Kd3 {[%clk 0:00:56]}  Kc8 {[%clk 0:00:29]} 48. Nd6+ {[%clk 0:00:54]}  Kd7 {[%clk 0:00:27]} 49. Nxf7 {[%clk 0:00:53]}  Nxb6 {[%clk 0:00:27]} 50. Ne5+ {[%clk 0:00:53]}  Ke7 {[%clk 0:00:26]} 51. Nxg6+ {[%clk 0:00:51]} 1-0


[Site "https://www.chess.com"]